bitfinex-derivatives/quotes_ETHF0:USTF0_20250803
["timestamp","ask_amount","ask_price","bid_price","bid_amount"]
[1754264664555,20.8012,3501.7,3501.6,1.8243]
[1754264665353,20.8012,3501.7,3501.6,2.9513]
[1754264670765,20.1768,3501.7,3501.6,2.9513]
[1754264671462,20.8012,3501.7,3501.6,2.9513]
[1754264673858,20.8012,3501.7,3501.6,0.6388]
[1754264676061,20.8012,3501.7,3501.6,1.0866]
[1754264677757,20.8012,3501.7,3501.6,0.6388]
[1754264678264,20.8012,3501.7,3501.6,2.9513]
[1754264678762,0.4338,3501.7,3501.6,2.9513]
[1754264678959,20.1278,3501.7,3501.6,2.9513]
[1754264680165,19.694,3501.7,3501.6,2.9513]
[1754264682065,1.0,3502.0,3501.9,2.9513]
[1754264682265,20.685,3502.0,3501.9,2.9513]
[1754264682468,21.45478682,3502.0,3501.9,2.9513]
[1754264682764,1.76978682,3502.0,3501.9,2.9513]
[1754264682966,0.08978682,3502.0,3501.9,2.9513]
[1754264683869,19.688,3502.1,3501.9,3.52235]
[1754264684065,0.571,3502.3,3502.0,2.9706]
[1754264684270,0.571,3502.3,3502.2,1.1916]
[1754264684471,0.75369732,3502.3,3502.2,2.9706]
[1754264684671,1.49909732,3502.3,3502.2,2.9706]
[1754264684973,3.02489732,3502.3,3502.2,2.9706]
[1754264685272,2.8422,3502.3,3502.2,2.9706]
[1754264687468,0.57107,3501.9,3501.7,3.2078]
[1754264687664,21.89007,3501.9,3501.8,2.4865]
[1754264687967,22.51727,3501.9,3501.8,2.9706]
[1754264688871,2.2712,3501.6,3501.5,1.1916]
[1754264689072,21.9622,3501.6,3501.5,1.1916]
[1754264689271,21.9622,3501.6,3501.5,2.9706]
[1754264696179,21.9622,3501.6,3501.2,6.33653105]
[1754264696180,2.4958,3501.3,3501.2,5.76537105]
[1754264696380,2.9182,3501.3,3501.2,8.73597105]
[1754264696579,2.2712,3501.3,3501.2,8.73597105]
[1754264696880,2.2712,3501.3,3501.2,5.52817105]
[1754264698080,2.2712,3501.3,3501.2,2.9706]
[1754264698577,1.644,3501.3,3501.2,2.9706]
[1754264699880,2.2712,3501.3,3501.2,2.9706]
[1754264700781,2.9182,3501.3,3501.2,2.4865]
[1754264700977,0.57117,3501.2,3500.9,2.55757105]
[1754264701174,2.8424,3501.0,3500.8,5.76537105]
[1754264701368,2.6912092,3501.2,3500.7,2.55757105]
[1754264701369,22.5892,3500.9,3500.7,2.55757105]
[1754264701684,3.48955,3500.1,3500.0,0.65782204]
[1754264701980,23.16055,3500.1,3500.0,1.0542]
[1754264702171,2.9182,3500.0,3499.9,0.6214]
[1754264702371,0.57143,3499.6,3499.5,3.58940555]
[1754264702568,23.16163,3499.6,3499.5,3.58940555]
[1754264702768,0.57148,3499.3,3499.2,3.2078]
[1754264702973,24.1194892,3499.3,3499.2,3.2078]
[1754264703177,25.8598892,3499.3,3499.2,3.2078]
[1754264703382,25.8598892,3499.3,3499.2,4.262]
[1754264704284,1.74933,3499.0,3498.9,1.65028009]
[1754264704484,23.16573,3499.0,3498.9,1.65028009]
[1754264704778,22.5942,3499.0,3498.9,1.65028009]
[1754264704984,22.5942,3499.0,3498.9,3.51538009]
[1754264705280,22.5942,3499.0,3498.9,3.99948009]
[1754264706385,21.9472,3499.0,3498.9,3.99948009]
[1754264711685,0.89444,3499.6,3499.5,2.9706]
[1754264711886,21.89744,3499.6,3499.5,2.9706]
[1754264712090,22.52464,3499.6,3499.5,2.9706]
[1754264713182,0.323,3499.7,3499.6,2.9706]
[1754264713384,20.004,3499.7,3499.6,2.9706]
[1754264713991,20.501,3499.7,3499.6,2.9706]
[1754264714582,21.9782,3499.7,3499.6,2.9706]
[1754264715280,2.9052,3499.4,3499.1,0.6357]
[1754264715590,21.9497,3499.3,3499.2,2.8711]
[1754264717195,2.2677,3499.0,3498.9,7.10778009]
[1754264717402,21.9497,3499.0,3498.9,7.10778009]
[1754264718693,21.3273,3499.0,3498.9,7.10778009]
[1754264721892,21.9497,3499.0,3498.9,7.10778009]
[1754264723097,3.2078,3499.7,3499.5,1.1547]
[1754264723299,0.7083,3499.7,3499.6,2.2354]
[1754264723498,19.9883,3499.7,3499.6,2.8711]
[1754264724006,20.8893,3499.7,3499.6,2.8711]
[1754264724193,21.3293,3499.7,3499.6,2.8711]
[1754264724499,21.9517,3499.7,3499.6,2.8711]
[1754264725502,1.6453,3499.3,3499.2,1.7904]
[1754264725794,2.2677,3499.3,3499.2,2.2564]
[1754264725999,2.2677,3499.3,3499.2,2.8711]
[1754264726698,21.3283,3499.3,3499.2,2.8711]
[1754264726902,20.3913,3499.3,3499.2,2.8711]
[1754264727090,19.9873,3499.3,3499.2,2.8711]
[1754264727293,19.683,3499.3,3499.2,2.8711]
[1754264728699,21.9507,3499.3,3499.2,2.8711]
[1754264729110,22.5882,3499.3,3499.2,0.6147]
[1754264729920,2.2677,3499.0,3498.9,7.10778009]
[1754264730909,1.6453,3499.0,3498.9,7.10778009]
[1754264731212,1.2053,3499.0,3498.9,7.10778009]
[1754264731412,2.2677,3499.0,3498.9,7.10778009]
[1754264732408,2.9052,3499.0,3498.9,6.64178009]
[1754264733015,2.9052,3499.0,3498.9,4.23668009]
[1754264733016,22.5882,3499.0,3498.9,4.23668009]
[1754264733321,22.5882,3499.0,3498.9,1.02888009]
[1754264737327,21.9507,3499.0,3498.9,1.02888009]
[1754264737623,21.9507,3499.0,3498.9,3.89998009]
[1754264738525,2.2677,3499.0,3498.9,3.89998009]
[1754264738728,21.9517,3499.0,3498.9,3.89998009]
[1754264739225,22.5892,3499.0,3498.9,3.89998009]
[1754264740826,21.9517,3499.0,3498.9,3.89998009]
[1754264741328,22.5892,3499.0,3498.9,3.89998009]
[1754264743229,22.5892,3499.0,3498.9,3.43398009]
[1754264743932,22.5892,3499.0,3498.9,2.07618009]
[1754264745429,22.5892,3499.0,3498.9,1.02888009]
[1754264746527,21.9517,3499.0,3498.9,3.81758009]
[1754264746723,19.683,3499.0,3498.9,3.81758009]
[1754264747218,19.683,3499.0,3498.9,2.17018009]
[1754264747827,19.9892,3499.0,3498.9,3.81758009]
[1754264748028,20.4597,3499.0,3498.9,3.81758009]
[1754264749021,21.9422,3499.0,3498.9,3.81758009]
[1754264749228,25.23687818,3499.0,3498.9,1.02888009]
[1754264752838,25.23687818,3499.0,3498.9,1.62178009]
[1754264754633,25.23687818,3499.0,3498.9,1.02888009]
[1754264754932,1.72033,3498.4,3498.3,0.5929]
[1754264755235,21.9402,3498.4,3498.3,2.7887]
[1754264756233,21.3002,3498.4,3498.3,2.7887]
[1754264757237,21.9402,3498.4,3498.3,2.7887]
[1754264757829,0.57164,3498.3,3498.1,0.61]
[1754264758136,20.8297,3498.2,3498.1,2.7887]
[1754264758334,20.8297,3498.2,3498.1,2.1958]
[1754264758635,21.9402,3498.2,3498.1,2.7887]
[1754264759634,21.3002,3498.2,3498.1,2.7887]
[1754264760330,20.8297,3498.2,3498.1,2.7887]
[1754264760535,20.4095,3498.2,3498.1,2.7887]
[1754264761231,19.9872,3498.2,3498.1,2.7887]
[1754264761737,20.4577,3498.2,3498.1,2.7887]
[1754264761936,21.3002,3498.2,3498.1,2.7887]
[1754264762138,21.9412,3498.2,3498.1,2.7887]
[1754264762333,21.3012,3498.2,3498.1,2.7887]
[1754264762930,19.682,3498.2,3498.1,2.7887]
[1754264763130,0.4705,3498.5,3498.2,0.57166]
[1754264763327,0.4705,3499.1,3498.5,1.6474]
[1754264763529,20.45496916,3499.0,3498.9,1.1413]
[1754264763734,19.681,3499.0,3498.9,4.3491]
[1754264764041,19.189,3499.0,3498.9,5.9965]
[1754264764236,2.7393341,3499.6,3499.5,1.1413]
[1754264764437,2.7393341,3499.6,3499.5,2.7887]
[1754264764438,24.48695193,3499.6,3499.5,2.7887]
[1754264765143,23.46775783,3499.6,3499.5,2.7887]
[1754264765338,23.28347225,3499.6,3499.5,2.7887]
[1754264765841,22.64347225,3499.6,3499.5,2.7887]
[1754264766041,22.64247225,3499.6,3499.5,2.7887]
[1754264766741,23.66899934,3499.6,3499.5,2.7887]
[1754264767040,24.30899934,3499.6,3499.5,2.7887]
[1754264767438,1.80035934,3499.6,3499.5,2.7887]
[1754264767642,20.45183225,3499.6,3499.5,2.7887]
[1754264768344,20.45140947,3499.6,3499.5,2.7887]
[1754264768543,20.75760947,3499.6,3499.5,2.7887]
[1754264768742,21.22810947,3499.6,3499.5,2.7887]
[1754264769039,0.77340947,3499.6,3499.5,2.7887]
[1754264769240,21.17890947,3499.6,3499.5,2.7887]
[1754264769441,21.64940947,3499.6,3499.5,2.7887]
[1754264770048,22.06960947,3499.6,3499.5,2.7887]
[1754264770440,22.70960947,3499.6,3499.5,2.7887]
[1754264770941,22.70960947,3499.6,3499.5,2.3442]
[1754264771248,25.23087818,3499.6,3499.5,0.5929]
[1754264771443,1.1487,3499.0,3498.9,4.7936]
[1754264771749,21.9342,3499.0,3498.9,5.4036]
[1754264771946,21.9342,3499.0,3498.9,5.9965]
[1754264774946,0.57145,3499.5,3499.0,0.57153]
[1754264775254,1.71198,3499.9,3499.8,1.1302]
[1754264775446,22.79551511,3499.9,3499.8,2.8299]
[1754264775644,23.42591511,3499.9,3499.8,2.8299]
[1754264775844,23.87571511,3499.9,3499.8,2.8299]
[1754264776044,23.10248,3499.9,3499.8,2.8299]
[1754264776846,22.47208,3499.9,3499.8,2.8299]
[1754264777350,23.10248,3499.9,3499.8,2.8299]
[1754264777652,23.10148,3499.9,3499.8,2.8299]
[1754264777853,2.79808,3499.9,3499.8,2.8299]
[1754264778048,21.8987,3499.9,3499.8,2.8299]
[1754264779251,3.8382,3500.2,3499.9,1.6997]
[1754264779252,3.2078,3500.2,3499.9,1.6997]
[1754264779447,3.2078,3500.2,3500.1,2.8299]
[1754264779749,22.8798,3500.2,3500.1,2.8299]
[1754264780254,3.2078,3500.2,3500.1,2.8299]
[1754264780549,5.4345,3500.2,3500.1,2.8299]
[1754264780749,6.0649,3500.2,3500.1,2.8299]
[1754264781555,5.4345,3500.2,3500.1,2.8299]
[1754264782455,25.1055,3500.2,3500.1,2.8299]
[1754264783349,21.8977,3500.2,3500.1,2.8299]
[1754264783548,19.671,3500.2,3500.1,2.8299]
[1754264783848,4.41536,3500.7,3500.4,0.4057]
[1754264784052,4.41536,3500.7,3500.6,2.8299]
[1754264784053,3.9641,3500.7,3500.6,2.8299]
[1754264784251,0.4498,3501.0,3500.9,1.1302]
[1754264784442,0.3065,3501.0,3500.9,2.8299]
[1754264784755,22.8768,3501.1,3501.0,2.8299]
[1754264784956,23.36592625,3501.1,3501.0,2.8299]
[1754264785155,19.9755,3501.1,3501.0,6.0377]
[1754264785451,19.669,3501.1,3501.0,6.0377]
[1754264785855,19.669,3501.2,3501.1,2.4174]
[1754264786048,21.2594,3501.2,3501.1,2.8299]
[1754264786250,21.8957,3501.2,3501.1,2.8299]
[1754264788452,21.2594,3501.2,3501.1,2.8299]
[1754264788960,0.57115,3501.4,3501.1,1.1302]
[1754264788961,0.4498,3501.4,3501.1,1.1302]
[1754264789161,19.663,3501.3,3501.2,2.8299]
[1754264789559,20.4193,3501.3,3501.2,2.8299]
[1754264789860,21.8897,3501.3,3501.2,2.8299]
[1754264790755,0.3065,3500.8,3500.7,1.9607]
[1754264790962,21.8897,3500.8,3500.7,2.3732]
[1754264791357,21.8897,3500.8,3500.7,2.8299]
[1754264792369,21.2534,3500.8,3500.7,2.8299]
[1754264792663,19.662,3501.1,3500.9,0.57121]
[1754264792963,0.6363,3501.6,3501.2,2.3732]
[1754264793264,0.3065,3501.4,3501.3,2.8299]
[1754264793471,20.4173,3501.4,3501.3,2.8299]
[1754264793861,20.8343,3501.4,3501.3,2.8299]
[1754264796462,21.2514,3501.4,3501.3,2.8299]
[1754264798073,22.5181,3501.4,3501.3,2.0612]
[1754264798864,2.8571,3501.3,3501.2,0.6374]
[1754264800664,2.8571,3501.3,3501.2,2.8299]
[1754264801070,3.38987,3501.2,3501.1,3.2078]
[1754264801273,22.4747,3501.2,3501.1,3.8452]
[1754264801769,22.4747,3501.2,3501.1,4.2577]
[1754264803774,22.4747,3501.2,3501.1,3.8452]
[1754264804972,22.4747,3501.2,3501.1,3.2078]
[1754264805178,0.57119,3501.1,3500.7,3.2078]
[1754264805371,24.02635664,3501.2,3500.7,3.2078]
[1754264805372,2.0591,3500.8,3500.7,3.2078]
[1754264805567,2.0591,3500.5,3500.4,0.5921]
[1754264805768,0.8353,3500.2,3500.1,2.72874]
[1754264806075,2.0591,3500.2,3500.1,3.35354]
[1754264806267,2.0591,3500.2,3500.1,0.5921]
[1754264806475,1.0227,3500.0,3499.9,3.2078]
[1754264806674,2.0591,3500.0,3499.9,3.2078]
[1754264806876,2.0591,3500.0,3499.9,5.99]
[1754264807778,1.4512,3500.0,3499.9,5.99]
[1754264808480,2.0591,3500.0,3499.9,5.99]
[1754264810285,2.0591,3500.0,3499.9,2.7822]
[1754264810878,1.4512,3499.9,3499.8,2.0844]
[1754264811086,21.1052,3499.9,3499.8,2.7822]
[1754264811883,2.0591,3499.7,3499.6,0.5921]
[1754264812081,2.0591,3499.5,3499.4,0.5921]
[1754264812385,2.63057,3499.4,3499.3,3.7999]
[1754264812683,2.63057,3499.4,3499.3,5.99]
[1754264813885,2.63057,3499.4,3498.5,2.54813459]
[1754264813886,0.8353,3498.9,3498.8,3.2078]
[1754264814083,1.4512,3498.9,3498.8,5.3652]
[1754264814385,1.4512,3498.9,3498.8,5.99]
[1754264815680,1.4512,3498.9,3498.8,2.7822]
[1754264816591,0.8353,3498.9,3498.8,2.7822]
[1754264819488,1.4512,3498.9,3498.8,2.7822]
[1754264820992,0.8353,3498.9,3498.8,2.7822]
[1754264821384,0.4148,3498.9,3498.8,2.7822]
[1754264821582,19.655,3499.0,3498.8,1.0977]
[1754264821783,19.655,3499.0,3498.9,2.7822]
[1754264822487,21.1062,3499.0,3498.9,2.7822]
[1754264823590,19.655,3499.0,3498.9,2.7822]
[1754264824083,21.7141,3499.0,3498.9,2.3823]
[1754264824490,21.1062,3499.0,3498.9,2.7822]
[1754264824685,3.2078,3499.5,3499.2,2.7822]
[1754264824686,0.57149,3499.3,3499.2,2.7822]
[1754264824990,20.22749,3499.3,3499.2,2.7822]
[1754264825193,21.67869,3499.3,3499.2,2.7822]
[1754264826384,3.2078,3499.5,3499.1,0.57151]
[1754264826690,3.2078,3499.5,3499.4,2.7822]
[1754264826887,22.8638,3499.5,3499.4,2.7822]
[1754264827487,24.315,3499.5,3499.4,0.8914]
[1754264827689,24.9229,3499.5,3499.4,1.2899]
[1754264827889,24.9229,3499.5,3499.4,2.7822]
[1754264828393,19.656,3499.5,3499.4,2.7822]
[1754264828593,0.57144,3499.6,3499.4,2.7822]
[1754264828791,0.57144,3499.6,3499.2,0.57149]
[1754264828792,44.9141,3500.4,3499.9,0.57138]
[1754264829087,3.2078,3500.8,3500.7,2.3146]
[1754264829395,22.8628,3500.8,3500.7,2.7822]
[1754264829590,23.6981,3500.8,3500.7,2.7822]
[1754264829793,24.9219,3500.8,3500.7,2.7822]
[1754264829993,24.9219,3500.8,3500.7,2.3146]
[1754264830291,24.314,3500.8,3500.7,2.7822]
[1754264831191,24.0866,3500.8,3500.3,0.4676]
[1754264831493,2.0591,3500.5,3500.4,1.2899]
[1754264831695,21.7141,3500.5,3500.4,2.7822]
[1754264831888,21.1062,3500.5,3500.4,2.7822]
[1754264833796,0.8032,3499.7,3499.6,2.21]
[1754264834097,1.4135,3499.7,3499.6,2.7945]
[1754264834590,0.8032,3499.7,3499.6,2.7945]
[1754264834991,19.652,3499.8,3499.6,3.36592]
[1754264835195,0.6103,3500.4,3499.7,1.1492]
[1754264835495,21.0645,3500.3,3500.2,2.7945]
[1754264835993,0.57129,3500.5,3500.3,0.6084]
[1754264836188,20.0664,3500.4,3500.3,2.7945]
[1754264837096,21.0645,3500.4,3500.3,2.7945]
[1754264837292,21.0645,3500.4,3500.3,1.7576]
[1754264837593,21.0645,3500.4,3499.6,3.2078]
[1754264837594,1.4135,3500.0,3499.9,2.7945]
[1754264837893,21.0635,3500.0,3499.9,2.7945]
[1754264838094,21.666,3500.0,3499.9,2.7945]
[1754264838297,21.0635,3500.0,3499.9,2.7945]
[1754264838693,21.666,3500.0,3499.9,2.7945]
[1754264839096,21.0635,3500.0,3499.9,2.7945]
[1754264839599,20.4532,3500.0,3499.9,2.7945]
[1754264839900,21.0635,3500.0,3499.9,2.7945]
[1754264843797,20.4532,3500.0,3499.9,2.7945]
[1754264845400,21.0635,3500.0,3499.9,2.7945]
[1754264848704,21.0615,3500.0,3499.9,2.7945]
[1754264850404,21.664,3500.0,3499.9,2.7945]
[1754264853804,21.664,3500.0,3499.9,1.3394]
[1754264854008,21.664,3500.0,3499.9,0.6084]
[1754264855110,2.016,3499.8,3499.7,2.3763]
[1754264855412,21.663,3499.8,3499.7,2.7945]
[1754264857311,21.663,3499.8,3499.7,0.9323]
[1754264857806,21.663,3499.8,3499.7,0.6084]
[1754264858207,21.663,3499.8,3499.7,1.1929]
[1754264858506,21.663,3499.8,3499.7,2.7945]
[1754264859304,0.57142,3499.7,3499.2,3.2078]
[1754264859502,21.0585,3499.6,3499.5,2.7945]
[1754264859703,19.645,3499.6,3499.5,2.7945]
[1754264860401,20.0604,3499.6,3499.5,2.7945]
[1754264861610,20.4482,3499.6,3499.5,2.7945]
[1754264861810,21.0585,3499.6,3499.5,2.7945]
[1754264862212,21.661,3499.6,3499.5,2.7945]
[1754264862413,21.661,3499.6,3499.2,5.75593459]
[1754264862414,0.8032,3499.4,3499.3,2.7945]
[1754264862615,21.661,3499.4,3499.3,2.7945]
[1754264863903,21.661,3499.4,3499.3,2.3421]
[1754264864109,21.661,3499.4,3499.3,2.8207]
[1754264864712,21.661,3499.4,3499.3,1.3394]
[1754264864915,21.661,3499.4,3499.3,1.9442]
[1754264865107,21.661,3499.4,3499.3,2.8268]
[1754264865310,21.0585,3499.4,3499.3,2.8268]
[1754264866411,21.639,3499.4,3499.3,2.8268]
[1754264870718,21.0585,3499.4,3499.3,2.8268]
[1754264871116,24.8468,3499.4,3499.3,2.8268]
[1754264871620,24.8468,3499.4,3499.3,2.222]
[1754264871821,21.639,3499.4,3499.3,2.4228]
[1754264872024,1.39218,3499.3,3499.2,1.1093]
[1754264872218,1.97478,3499.3,3499.2,1.1093]
[1754264872416,2.54948,3499.3,3499.2,1.1093]
[1754264872616,2.54948,3499.3,3499.2,2.783]
[1754264872819,1.97478,3499.3,3499.2,2.783]
[1754264873411,3.2078,3499.8,3499.7,0.7031]
[1754264873615,22.8508,3499.8,3499.7,2.783]
[1754264873912,3.2078,3499.8,3499.7,2.783]
[1754264874111,19.643,3499.8,3499.7,2.783]
[1754264874316,3.2078,3500.2,3500.1,1.1093]
[1754264874517,3.2078,3500.2,3500.1,2.783]
[1754264874715,3.2078,3500.7,3500.6,2.3044]
[1754264874920,23.62286254,3500.7,3500.6,2.783]
[1754264875220,22.8508,3500.7,3500.6,2.783]
[1754264876423,3.2078,3501.1,3501.0,0.404]
[1754264876722,2.7855,3501.5,3501.4,1.1093]
[1754264876924,23.37961427,3501.5,3501.4,2.783]
[1754264877220,22.4255,3501.5,3501.4,2.783]
[1754264878119,22.4255,3501.5,3500.9,3.2078]
[1754264878120,3.35664,3501.4,3501.3,0.4062]
[1754264878320,1.1202,3501.0,3500.9,4.7957]
[1754264878520,2.7855,3501.0,3500.9,2.1782]
[1754264878719,2.7855,3501.0,3500.9,1.6996]
[1754264878923,2.7855,3501.0,3500.9,2.783]
[1754264880023,1.5715,3501.0,3500.9,2.783]
[1754264880726,19.64,3501.1,3501.0,2.783]
[1754264881020,21.2115,3501.1,3501.0,2.783]
[1754264881220,1.214,3501.3,3501.0,1.1093]
[1754264881418,19.637,3501.1,3501.0,1.1093]
[1754264881729,22.4225,3501.1,3501.0,1.1093]
[1754264881929,22.4225,3501.1,3501.0,2.783]
[1754264882220,3.2078,3501.7,3500.9,3.2078]
[1754264882421,6.56439,3501.7,3501.6,2.4839]
[1754264882616,26.19939,3501.7,3501.6,2.783]
[1754264882817,0.57117,3501.3,3501.2,0.4062]
[1754264883023,2.0705,3501.2,3501.1,0.8102]
[1754264883324,2.7855,3501.2,3501.1,1.4005]
[1754264883626,20.20617,3501.3,3500.9,5.9908]
[1754264883627,2.7855,3501.0,3500.9,5.9908]
[1754264883826,22.4205,3501.0,3500.9,3.2078]
[1754264884327,22.4205,3501.0,3500.9,5.2131]
[1754264884826,22.4205,3501.0,3500.9,5.6917]
[1754264887228,22.4205,3501.0,3500.9,5.9908]
[1754264888127,22.4205,3501.0,3500.9,2.783]
[1754264891129,22.4205,3501.0,3500.9,0.4062]
[1754264891331,22.4205,3501.0,3500.9,1.6013]
[1754264891626,22.4205,3501.0,3500.9,2.0053]
[1754264891924,22.4205,3501.0,3500.9,2.783]
[1754264892826,21.2065,3501.0,3500.9,2.783]
[1754264893025,22.4205,3501.0,3500.9,2.783]
[1754264894525,21.2065,3501.0,3500.9,2.783]
[1754264895231,20.7552,3501.0,3500.9,2.783]
[1754264895624,21.2246,3501.0,3500.9,2.783]
[1754264896729,22.3987,3501.0,3500.9,2.783]
[1754264897426,0.57122,3500.9,3500.6,0.6329]
[1754264897631,2.7279,3500.5,3500.4,6.0846]
[1754264897827,22.3579,3500.5,3500.4,3.2078]
[1754264899531,22.3579,3500.5,3500.4,3.6235]
[1754264899731,22.3579,3500.5,3500.4,5.295]
[1754264899933,22.3579,3500.5,3500.4,5.7778]
[1754264900134,22.3579,3500.5,3500.4,3.2078]
[1754264901234,22.3579,3500.5,3500.4,4.6621]
[1754264901436,22.3579,3500.5,3500.4,4.0395]
[1754264901635,22.3579,3500.5,3500.4,3.6235]
[1754264901931,22.3579,3500.5,3500.4,3.2078]
[1754264902632,2.7279,3500.2,3500.1,2.57]
[1754264902828,22.3569,3500.2,3500.1,2.57]
[1754264905432,22.3569,3500.2,3500.1,2.8768]
[1754264910931,22.3569,3500.2,3499.6,0.57142]
[1754264910932,0.57135,3500.1,3499.6,0.57142]
[1754264911240,2.7279,3499.8,3499.7,1.7714]
[1754264911436,22.3559,3499.8,3499.7,1.7714]
[1754264911635,22.3559,3499.8,3499.7,2.8768]
[1754264911941,21.1818,3499.8,3499.7,2.8768]
[1754264912140,20.7124,3499.8,3499.7,2.8768]
[1754264913242,21.1818,3499.8,3499.7,2.8768]
[1754264914342,21.7749,3499.8,3499.7,2.8768]
[1754264915747,19.628,3499.8,3499.7,2.8768]
[1754264916634,19.626,3499.9,3499.8,1.4031]
[1754264916840,19.626,3499.9,3499.8,3.4482]
[1754264918549,20.0954,3499.9,3499.8,3.4482]
[1754264918741,19.626,3499.9,3499.8,6.656]
[1754264919446,20.785,3499.9,3499.8,6.656]
[1754264919846,20.785,3499.9,3499.8,6.0846]
[1754264920147,21.9591,3499.9,3499.8,6.0846]
[1754264921741,19.626,3499.9,3499.8,6.0846]
[1754264921941,22.3539,3499.9,3499.8,4.6621]
[1754264922442,22.3539,3499.9,3499.8,4.2461]
[1754264922637,22.3539,3499.9,3499.8,3.2078]
[1754264923550,22.3539,3499.9,3499.8,6.0846]
[1754264923849,2.7279,3499.9,3499.8,6.0846]
[1754264924048,19.9186,3499.9,3499.8,6.0846]
[1754264924646,20.3075,3499.9,3499.8,6.0846]
[1754264924846,22.3427,3499.9,3499.8,6.0846]
[1754264926247,22.3427,3499.9,3499.8,5.295]
[1754264926641,22.3427,3499.9,3499.8,5.769]
[1754264926837,22.3427,3499.9,3499.8,6.0824]
[1754264927536,21.7604,3499.9,3499.8,6.0824]
[1754264927742,0.3889,3500.1,3500.0,2.7967]
[1754264927941,19.624,3500.1,3500.0,2.7967]
[1754264928448,21.1651,3500.1,3500.0,2.7967]
[1754264928649,22.3469,3500.1,3500.0,2.7967]
[1754264929543,22.3459,3500.1,3500.0,2.7967]
[1754264930042,0.57131,3500.4,3500.0,2.7967]
[1754264930251,21.7636,3500.3,3500.2,2.7967]
[1754264930446,2.1406,3500.3,3500.2,2.7967]
[1754264930750,22.3459,3500.3,3500.2,2.7967]
[1754264932238,1.5411,3500.3,3500.2,2.7967]
[1754264932438,44.3478,3501.0,3500.9,0.3902]
[1754264932747,0.77244775,3501.0,3500.9,2.7967]
[1754264932944,20.39444775,3501.0,3500.9,2.7967]
[1754264933447,22.3449,3501.0,3500.9,2.7967]
[1754264935544,19.622,3501.0,3500.9,2.7967]
[1754264936046,1.0764,3501.1,3501.0,1.6776]
[1754264936244,20.7714,3501.1,3501.0,3.3679]
[1754264936444,21.1601,3501.1,3501.0,2.7967]
[1754264936644,20.3067,3501.1,3501.0,2.7967]
[1754264937347,22.3419,3501.1,3501.0,2.7967]
[1754264938453,21.7596,3501.1,3501.0,2.7967]
[1754264938752,20.6954,3501.1,3501.0,2.7967]
[1754264938949,20.3067,3501.1,3501.0,2.7967]
[1754264941257,22.3419,3501.1,3501.0,2.7967]
[1754264941650,0.57127,3500.6,3500.1,4.4241]
[1754264941851,2.7229,3500.2,3500.1,6.0045]
[1754264944257,2.7229,3500.2,3499.8,0.474]
[1754264944459,0.3889,3499.9,3499.8,2.0805]
[1754264944663,2.7229,3499.9,3499.8,2.7967]
[1754264945261,2.7229,3499.9,3499.6,3.2078]
[1754264945262,1.0764,3499.7,3499.6,3.2078]
[1754264945558,2.7229,3499.7,3499.6,3.598]
[1754264945760,2.7229,3499.7,3499.6,6.0045]
[1754264948769,2.7229,3499.7,3499.6,3.2078]
[1754264948957,0.7776,3499.2,3499.1,0.9826]
[1754264949161,2.7229,3499.2,3499.1,0.9826]
[1754264949364,2.7229,3499.2,3499.1,0.3902]
[1754264949760,2.7229,3499.2,3499.1,0.793]
[1754264949967,2.7229,3499.2,3499.1,2.0093]
[1754264951271,2.7229,3499.2,3499.1,2.4833]
[1754264951463,2.7229,3499.2,3499.1,2.7967]
[1754264951872,2.7229,3499.2,3499.1,0.793]
[1754264952072,1.0764,3499.2,3498.9,1.04554]
[1754264952272,2.7229,3499.0,3498.9,3.05484]
[1754264952468,2.7229,3499.0,3498.9,3.36824]
[1754264953570,1.6465,3499.6,3499.1,0.5715]
[1754264953774,2.7229,3499.6,3499.5,2.7967]
[1754264953970,2.7036,3499.6,3499.5,0.793]
[1754264954274,2.7042,3499.3,3499.2,3.2078]
[1754264958371,2.7042,3499.3,3499.2,3.6064]
[1754264958577,2.7042,3499.3,3499.2,4.5952]
[1754264958876,2.7042,3499.3,3499.2,1.9644]
[1754264959078,1.0828,3499.0,3498.9,2.1223]
[1754264959375,2.7042,3499.0,3498.9,2.1223]
[1754264959771,2.7042,3499.0,3498.9,2.7297]
[1754264962174,2.2453,3498.8,3498.7,3.9878]
[1754264962374,2.7042,3498.8,3498.7,3.9878]
[1754264962574,2.7042,3498.8,3498.7,5.9375]
[1754264966981,2.7042,3498.8,3498.7,5.1722]
[1754264967485,2.7042,3498.8,3498.7,5.6293]
[1754264967873,2.7042,3498.8,3498.3,3.2078]
[1754264968079,2.7042,3498.0,3497.9,5.3301]
[1754264968280,2.7042,3498.0,3497.9,5.9375]
[1754264969380,2.7042,3498.0,3497.9,4.9791]
[1754264970080,2.7042,3498.0,3497.9,3.9146]
[1754264970280,2.7042,3498.0,3497.9,3.2078]
[1754264971089,2.7042,3497.6,3497.5,5.9375]
[1754264971276,2.7042,3497.6,3497.5,4.296]
[1754264971589,2.7042,3497.6,3497.5,5.9375]
[1754264973993,2.22678,3498.1,3498.0,2.7297]
[1754264974388,3.27588,3498.1,3498.0,2.7297]
[1754264975890,1.0491,3497.7,3497.6,1.357]
[1754264976190,1.0828,3497.7,3497.6,2.7297]
[1754264976488,1.6551,3497.7,3497.6,2.7297]
[1754264976687,2.7042,3497.7,3497.6,2.7297]
[1754264976891,2.7042,3497.7,3497.6,1.0882]